Workbook

Sheet סיכום תקציב חודשי
B1: שם החברה
B2: תקציב חודשי | E2: תאריך
B4: סכומי תקציב כוללים | C4: משוער | D4: בפועל | E4: הפרש
B5: הכנסות | C5: =הכנסות[[#Totals],[משוער]] -> 63,300.00 | D5: =הכנסות[[#Totals],[בפועל]] -> 57,450.00 | E5: =סכומים_כוללים[[#This Row],[משוער]]-סכומים_כוללים[[#This Row],[בפועל]] -> 5,850.00
B6: הוצאות | C6: =OperatingExpenses[[#Totals],[משוער]]+הוצאות_כוח_אדם[[#Totals],[משוער]] -> 54,500.00 | D6: =OperatingExpenses[[#Totals],[בפועל]]+הוצאות_כוח_אדם[[#Totals],[בפועל]] -> 49,630.00 | E6: =סכומים_כוללים[[#This Row],[משוער]]-סכומים_כוללים[[#This Row],[בפועל]] -> 4,870.00
B7: יתרה (הכנסות פחות הוצאות) | C7: =C5-C6 -> 8,800.00 | D7: =D5-D6 -> 7,820.00 | E7: =סכומים_כוללים[[#Totals],[בפועל]]-סכומים_כוללים[[#Totals],[משוער]] -> (980.00)
B10: מהן 5 ההוצאות התפעוליות הגבוהות ביותר שלי?
B11: הוצאה | C11: סכום | D11: % מההוצאות | E11: הפחתה של 15%
B12: =INDEX(OperatingExpenses[],MATCH(_5_הוצאות_מובילות[[#This Row],[סכום]],OperatingExpenses[5 הסכומים המובילים],0),1) -> תחזוקה ותיקונים | C12: =LARGE(OperatingExpenses[5 הסכומים המובילים],1) -> 4,600.00 | D12: =_5_הוצאות_מובילות[[#This Row],[סכום]]/$D$6 -> 9.3% | E12: =_5_הוצאות_מובילות[[#This Row],[סכום]]*0.15 -> 690.00
B13: =INDEX(OperatingExpenses[],MATCH(_5_הוצאות_מובילות[[#This Row],[סכום]],OperatingExpenses[5 הסכומים המובילים],0),1) -> ציוד | C13: =LARGE(OperatingExpenses[5 הסכומים המובילים],2) -> 4,500.00 | D13: =_5_הוצאות_מובילות[[#This Row],[סכום]]/$D$6 -> 9.1% | E13: =_5_הוצאות_מובילות[[#This Row],[סכום]]*0.15 -> 675.00
B14: =INDEX(OperatingExpenses[],MATCH(_5_הוצאות_מובילות[[#This Row],[סכום]],OperatingExpenses[5 הסכומים המובילים],0),1) -> שכירות או משכנתה | C14: =LARGE(OperatingExpenses[5 הסכומים המובילים],3) -> 4,500.00 | D14: =_5_הוצאות_מובילות[[#This Row],[סכום]]/$D$6 -> 9.1% | E14: =_5_הוצאות_מובילות[[#This Row],[סכום]]*0.15 -> 675.00
B15: =INDEX(OperatingExpenses[],MATCH(_5_הוצאות_מובילות[[#This Row],[סכום]],OperatingExpenses[5 הסכומים המובילים],0),1) -> מסים | C15: =LARGE(OperatingExpenses[5 הסכומים המובילים],4) -> 3,200.00 | D15: =_5_הוצאות_מובילות[[#This Row],[סכום]]/$D$6 -> 6.4% | E15: =_5_הוצאות_מובילות[[#This Row],[סכום]]*0.15 -> 480.00
B16: =INDEX(OperatingExpenses[],MATCH(_5_הוצאות_מובילות[[#This Row],[סכום]],OperatingExpenses[5 הסכומים המובילים],0),1) -> פרסום | C16: =LARGE(OperatingExpenses[5 הסכומים המובילים],5) -> 2,500.00 | D16: =_5_הוצאות_מובילות[[#This Row],[סכום]]/$D$6 -> 5.0% | E16: =_5_הוצאות_מובילות[[#This Row],[סכום]]*0.15 -> 375.00
B17: סה"כ | C17: =SUBTOTAL(109,_5_הוצאות_מובילות[סכום]) -> 19,300.00 | D17: =SUBTOTAL(109,_5_הוצאות_מובילות[% מההוצאות]) -> 38.9% | E17: =SUBTOTAL(109,_5_הוצאות_מובילות[הפחתה של 15%]) -> 2,895.00

Sheet הכנסות
B1: =שם_החברה -> שם החברה
B2: =BUDGET_Title -> תקציב חודשי
B4: הכנסה | C4: משוער | D4: בפועל | E4: 5 הסכומים המובילים | F4: הפרש
B5: מכירות נטו | C5: 60,000.00 | D5: 54,000.00 | E5: =הכנסות[[#This Row],[בפועל]]+(10^-6)*ROW(הכנסות[[#This Row],[בפועל]]) -> 54,000.00 | F5: =הכנסות[[#This Row],[בפועל]]-הכנסות[[#This Row],[משוער]] -> -6,000.00
B6: הכנסה מריבית | C6: 3,000.00 | D6: 3,000.00 | E6: =הכנסות[[#This Row],[בפועל]]+(10^-6)*ROW(הכנסות[[#This Row],[בפועל]]) -> 3,000.00 | F6: =הכנסות[[#This Row],[בפועל]]-הכנסות[[#This Row],[משוער]] -> 0.00
B7: מכירות נכסים (רווח/הפסד) | C7: 300.00 | D7: 450.00 | E7: =הכנסות[[#This Row],[בפועל]]+(10^-6)*ROW(הכנסות[[#This Row],[בפועל]]) -> 450.00 | F7: =הכנסות[[#This Row],[בפועל]]-הכנסות[[#This Row],[משוער]] -> 150.00
B8: סה"כ הכנסות | C8: =SUBTOTAL(109,הכנסות[משוער]) -> 63,300.00 | D8: =SUBTOTAL(109,הכנסות[בפועל]) -> 57,450.00 | F8: =SUBTOTAL(109,הכנסות[הפרש]) -> -5,850.00

Sheet הוצאות כוח אדם
B1: =שם_החברה -> שם החברה
B2: =BUDGET_Title -> תקציב חודשי
B4: הוצאות כוח אדם | C4: משוער | D4: בפועל | E4: 5 הסכומים המובילים | F4: הפרש
B5: שכר | C5: 9,500.00 | D5: 9,600.00 | E5: =הוצאות_כוח_אדם[[#This Row],[בפועל]]+(10^-6)*ROW(הוצאות_כוח_אדם[[#This Row],[בפועל]]) -> 9,600.00 | F5: =הוצאות_כוח_אדם[[#This Row],[משוער]]-הוצאות_כוח_אדם[[#This Row],[בפועל]] -> -100.00
B6: הטבות לעובדים | C6: 4,000.00 | D6: 0.00 | E6: =הוצאות_כוח_אדם[[#This Row],[בפועל]]+(10^-6)*ROW(הוצאות_כוח_אדם[[#This Row],[בפועל]]) -> 0.00 | F6: =הוצאות_כוח_אדם[[#This Row],[משוער]]-הוצאות_כוח_אדם[[#This Row],[בפועל]] -> 4,000.00
B7: עמלה | C7: 5,000.00 | D7: 4,500.00 | E7: =הוצאות_כוח_אדם[[#This Row],[בפועל]]+(10^-6)*ROW(הוצאות_כוח_אדם[[#This Row],[בפועל]]) -> 4,500.00 | F7: =הוצאות_כוח_אדם[[#This Row],[משוער]]-הוצאות_כוח_אדם[[#This Row],[בפועל]] -> 500.00
B8: הוצאות כוח אדם כוללות | C8: =SUBTOTAL(109,הוצאות_כוח_אדם[משוער]) -> 18500 | D8: =SUBTOTAL(109,הוצאות_כוח_אדם[בפועל]) -> 14100 | F8: =SUBTOTAL(109,הוצאות_כוח_אדם[הפרש]) -> 4400

Sheet הוצאות תפעוליות
B1: =שם_החברה -> שם החברה
B2: =BUDGET_Title -> תקציב חודשי
B4: הוצאות תפעוליות | C4: משוער | D4: בפועל | E4: 5 הסכומים המובילים | F4: הפרש
B5: פרסום | C5: 3,000.00 | D5: 2,500.00 | E5: =OperatingExpenses[[#This Row],[בפועל]]+(10^-6)*ROW(OperatingExpenses[[#This Row],[בפועל]]) -> 2,500.00 | F5: =OperatingExpenses[[#This Row],[משוער]]-OperatingExpenses[[#This Row],[בפועל]] -> 500.00
B6: חובות אבודים | C6: 2,000.00 | D6: 2,000.00 | E6: =OperatingExpenses[[#This Row],[בפועל]]+(10^-6)*ROW(OperatingExpenses[[#This Row],[בפועל]]) -> 2,000.00 | F6: =OperatingExpenses[[#This Row],[משוער]]-OperatingExpenses[[#This Row],[בפועל]] -> 0.00
B7: הנחות במזומן | C7: 1,500.00 | D7: 2,175.00 | E7: =OperatingExpenses[[#This Row],[בפועל]]+(10^-6)*ROW(OperatingExpenses[[#This Row],[בפועל]]) -> 2,175.00 | F7: =OperatingExpenses[[#This Row],[משוער]]-OperatingExpenses[[#This Row],[בפועל]] -> -675.00
B8: עלויות משלוח | C8: 2,000.00 | D8: 1,500.00 | E8: =OperatingExpenses[[#This Row],[בפועל]]+(10^-6)*ROW(OperatingExpenses[[#This Row],[בפועל]]) -> 1,500.00 | F8: =OperatingExpenses[[#This Row],[משוער]]-OperatingExpenses[[#This Row],[בפועל]] -> 500.00
B9: פחת | C9: 1,000.00 | D9: 1,000.00 | E9: =OperatingExpenses[[#This Row],[בפועל]]+(10^-6)*ROW(OperatingExpenses[[#This Row],[בפועל]]) -> 1,000.00 | F9: =OperatingExpenses[[#This Row],[משוער]]-OperatingExpenses[[#This Row],[בפועל]] -> 0.00
B10: דמי חבר ומנויים | C10: 500.00 | D10: 525.00 | E10: =OperatingExpenses[[#This Row],[בפועל]]+(10^-6)*ROW(OperatingExpenses[[#This Row],[בפועל]]) -> 525.00 | F10: =OperatingExpenses[[#This Row],[משוער]]-OperatingExpenses[[#This Row],[בפועל]] -> -25.00
B11: ביטוח | C11: 1,300.00 | D11: 1,275.00 | E11: =OperatingExpenses[[#This Row],[בפועל]]+(10^-6)*ROW(OperatingExpenses[[#This Row],[בפועל]]) -> 1,275.00 | F11: =OperatingExpenses[[#This Row],[משוער]]-OperatingExpenses[[#This Row],[בפועל]] -> 25.00
B12: ריבית | C12: 2,000.00 | D12: 2,200.00 | E12: =OperatingExpenses[[#This Row],[בפועל]]+(10^-6)*ROW(OperatingExpenses[[#This Row],[בפועל]]) -> 2,200.00 | F12: =OperatingExpenses[[#This Row],[משוער]]-OperatingExpenses[[#This Row],[בפועל]] -> -200.00
B13: ביקורת והוצאות משפטיות | C13: 1,000.00 | D13: 800.00 | E13: =OperatingExpenses[[#This Row],[בפועל]]+(10^-6)*ROW(OperatingExpenses[[#This Row],[בפועל]]) -> 800.00 | F13: =OperatingExpenses[[#This Row],[משוער]]-OperatingExpenses[[#This Row],[בפועל]] -> 200.00
B14: תחזוקה ותיקונים | C14: 4,500.00 | D14: 4,600.00 | E14: =OperatingExpenses[[#This Row],[בפועל]]+(10^-6)*ROW(OperatingExpenses[[#This Row],[בפועל]]) -> 4,600.00 | F14: =OperatingExpenses[[#This Row],[משוער]]-OperatingExpenses[[#This Row],[בפועל]] -> -100.00
B15: ציוד משרדי | C15: 800.00 | D15: 750.00 | E15: =OperatingExpenses[[#This Row],[בפועל]]+(10^-6)*ROW(OperatingExpenses[[#This Row],[בפועל]]) -> 750.00 | F15: =OperatingExpenses[[#This Row],[משוער]]-OperatingExpenses[[#This Row],[בפועל]] -> 50.00
B16: דמי דואר | C16: 400.00 | D16: 350.00 | E16: =OperatingExpenses[[#This Row],[בפועל]]+(10^-6)*ROW(OperatingExpenses[[#This Row],[בפועל]]) -> 350.00 | F16: =OperatingExpenses[[#This Row],[משוער]]-OperatingExpenses[[#This Row],[בפועל]] -> 50.00
B17: שכירות או משכנתה | C17: 4,100.00 | D17: 4,500.00 | E17: =OperatingExpenses[[#This Row],[בפועל]]+(10^-6)*ROW(OperatingExpenses[[#This Row],[בפועל]]) -> 4,500.00 | F17: =OperatingExpenses[[#This Row],[משוער]]-OperatingExpenses[[#This Row],[בפועל]] -> -400.00
B18: הוצאות מכירה | C18: 350.00 | D18: 400.00 | E18: =OperatingExpenses[[#This Row],[בפועל]]+(10^-6)*ROW(OperatingExpenses[[#This Row],[בפועל]]) -> 400.00 | F18: =OperatingExpenses[[#This Row],[משוער]]-OperatingExpenses[[#This Row],[בפועל]] -> -50.00
B19: משלוח ואחסון | C19: 900.00 | D19: 840.00 | E19: =OperatingExpenses[[#This Row],[בפועל]]+(10^-6)*ROW(OperatingExpenses[[#This Row],[בפועל]]) -> 840.00 | F19: =OperatingExpenses[[#This Row],[משוער]]-OperatingExpenses[[#This Row],[בפועל]] -> 60.00
B20: ציוד | C20: 5,000.00 | D20: 4,500.00 | E20: =OperatingExpenses[[#This Row],[בפועל]]+(10^-6)*ROW(OperatingExpenses[[#This Row],[בפועל]]) -> 4,500.00 | F20: =OperatingExpenses[[#This Row],[משוער]]-OperatingExpenses[[#This Row],[בפועל]] -> 500.00
B21: מסים | C21: 3,000.00 | D21: 3,200.00 | E21: =OperatingExpenses[[#This Row],[בפועל]]+(10^-6)*ROW(OperatingExpenses[[#This Row],[בפועל]]) -> 3,200.00 | F21: =OperatingExpenses[[#This Row],[משוער]]-OperatingExpenses[[#This Row],[בפועל]] -> -200.00
B22: טלפון | C22: 250.00 | D22: 280.00 | E22: =OperatingExpenses[[#This Row],[בפועל]]+(10^-6)*ROW(OperatingExpenses[[#This Row],[בפועל]]) -> 280.00 | F22: =OperatingExpenses[[#This Row],[משוער]]-OperatingExpenses[[#This Row],[בפועל]] -> -30.00
B23: שירותים ציבוריים | C23: 1,400.00 | D23: 1,385.00 | E23: =OperatingExpenses[[#This Row],[בפועל]]+(10^-6)*ROW(OperatingExpenses[[#This Row],[בפועל]]) -> 1,385.00 | F23: =OperatingExpenses[[#This Row],[משוער]]-OperatingExpenses[[#This Row],[בפועל]] -> 15.00
B24: אחר | C24: 1,000.00 | D24: 750.00 | E24: =OperatingExpenses[[#This Row],[בפועל]]+(10^-6)*ROW(OperatingExpenses[[#This Row],[בפועל]]) -> 750.00 | F24: =OperatingExpenses[[#This Row],[משוער]]-OperatingExpenses[[#This Row],[בפועל]] -> 250.00
B25: סה"כ הוצאות תפעוליות | C25: =SUBTOTAL(109,OperatingExpenses[משוער]) -> 36,000.00 | D25: =SUBTOTAL(109,OperatingExpenses[בפועל]) -> 35,530.00 | F25: =SUBTOTAL(109,OperatingExpenses[הפרש]) -> 470.00
